bitfinex/quotes_ETHUSD_20241217
["timestamp","ask_amount","ask_price","bid_price","bid_amount"]
[1734404603053,0.25973264,4015.8,4015.0,0.8105]
[1734404603193,0.25973264,4015.8,4015.2,0.8105]
[1734404603399,1.437908,4017.2,4014.7,1.03244162]
[1734404603400,0.995308,4017.2,4015.4,0.8105]
[1734404603633,0.4426,4017.5,4015.6,0.8105]
[1734404603634,2.09220995,4017.5,4015.6,0.8105]
[1734404603846,2.09220995,4017.5,4015.7,0.95152508]
[1734404603995,2.09220995,4017.1,4015.7,0.95152508]
[1734404604652,2.09220995,4017.1,4015.7,0.97641054]
[1734404604958,2.09220995,4017.1,4015.7,0.95152508]
[1734404605251,2.09220995,4017.1,4015.7,0.9764184]
[1734404605459,2.09220995,4017.1,4015.9,0.8105]
[1734404607435,2.09220995,4016.7,4015.9,0.8105]
[1734404607638,2.09220995,4016.3,4015.9,0.8105]
[1734404608026,2.09220995,4016.7,4015.9,0.8105]
[1734404609390,2.09220995,4017.1,4015.9,0.8105]
[1734404612072,2.09220995,4016.7,4015.9,1.20395363]
[1734404612257,2.09220995,4016.7,4015.9,0.8105]
[1734404613092,2.09220995,4016.3,4015.9,0.8105]
[1734404614430,2.09220995,4016.3,4015.1,0.8105]
[1734404614644,4.58230995,4015.9,4015.1,0.8105]
[1734404615727,2.09220995,4015.9,4015.1,0.8105]
[1734404615927,2.30143095,4015.9,4015.1,0.8105]
[1734404616148,2.49023,4015.7,4015.1,0.8105]
[1734404616347,0.55,4015.8,4015.1,0.8105]
[1734404616563,2.49029,4015.6,4015.1,0.8105]
[1734404617496,2.49029,4015.6,4014.1,0.13571566]
[1734404617497,2.1086198,4015.5,4014.1,0.13571566]
[1734404617652,2.1086198,4015.5,4013.9,0.29904892]
[1734404617985,2.49057,4015.2,4014.1,0.29904892]
[1734404618287,2.09220995,4014.7,4013.2,0.39768171]
[1734404618491,2.09220995,4014.7,4013.3,0.29904892]
[1734404618652,2.49091,4014.6,4013.3,0.29904892]
[1734404619054,2.09220995,4014.3,4013.3,0.29904892]
[1734404620992,2.1086198,4014.3,4013.3,0.29904892]
[1734404621407,0.01640985,4014.2,4013.3,0.29904892]
[1734404621549,2.09220995,4014.3,4013.3,0.29904892]
[1734404625307,0.01640985,4014.2,4013.3,0.29904892]
[1734404625455,2.09220995,4014.3,4013.4,0.7555]
[1734404625656,0.55,4014.7,4013.5,0.02459459]
[1734404625954,0.55,4014.7,4013.6,0.13549512]
[1734404626205,0.55,4014.7,4013.6,0.43454404]
[1734404627769,0.55,4014.7,4013.6,0.13549512]
[1734404629413,0.56640985,4014.7,4013.6,0.13549512]
[1734404629711,0.55,4014.7,4013.6,0.13549512]
[1734404633398,1.10755899,4014.7,4013.6,0.13549512]
[1734404633808,3.59841899,4014.7,4013.6,0.13549512]
[1734404634107,0.01640985,4014.6,4013.6,0.13549512]
[1734404634272,0.01640985,4014.6,4013.4,0.7555]
[1734404634273,4.58349995,4014.0,4013.4,0.7555]
[1734404634473,0.01640985,4013.9,4013.4,0.7555]
[1734404634825,2.50774985,4013.9,4012.6,0.4213816]
[1734404635558,2.50774985,4013.9,4012.6,0.29904892]
[1734404635920,2.09220995,4013.6,4012.1,0.27580766]
[1734404636138,0.01640985,4013.5,4011.9,0.29904892]
[1734404636302,0.01640985,4013.5,4012.0,0.7555]
[1734404636502,2.49184,4013.1,4012.0,0.7555]
[1734404637889,4.58398995,4013.2,4012.0,0.7555]
[1734404638604,2.09220995,4013.2,4012.0,1.1434032]
[1734404638814,2.49213,4012.7,4012.0,0.7555]
[1734404639400,2.4922,4012.6,4012.0,0.7555]
[1734404639626,2.09220995,4012.4,4012.0,0.7555]
[1734404639849,0.55,4012.2,4011.0,0.7883]
[1734404640037,2.64220995,4012.0,4011.0,1.08734892]
[1734404640240,2.64220995,4012.0,4010.7,0.27580766]
[1734404640241,2.09220995,4011.2,4010.7,0.27580766]
[1734404640441,2.09220995,4011.2,4010.3,0.7883]
[1734404641977,2.09220995,4011.6,4010.3,0.7883]
[1734404642122,2.09220995,4011.6,4010.4,0.7883]
[1734404642322,2.09220995,4011.6,4010.5,0.92133521]
[1734404644955,2.09220995,4012.4,4010.7,0.7883]
[1734404645159,2.09220995,4012.4,4010.8,0.7883]
[1734404645325,2.09220995,4012.0,4010.8,0.7883]
[1734404645751,2.09220995,4011.6,4010.8,0.7883]
[1734404647722,2.09220995,4011.6,4010.9,0.02217054]
[1734404648336,2.09220995,4012.0,4011.0,0.7883]
[1734404648549,0.55,4012.3,4011.0,0.81154953]
[1734404648755,2.09220995,4012.8,4011.0,0.81154953]
[1734404649136,2.09220995,4012.8,4011.1,0.7883]
[1734404649341,2.09220995,4012.8,4011.2,0.7883]
[1734404649531,2.09220995,4012.8,4011.4,0.7883]
[1734404649924,2.09220995,4012.8,4011.5,0.02312826]
[1734404650154,2.09220995,4012.8,4011.6,0.7883]
[1734404650353,2.09220995,4012.8,4011.6,0.81142483]
[1734404651161,2.09220995,4012.4,4011.6,0.81142483]
[1734404651851,2.09220995,4012.4,4011.7,0.0231214]
[1734404652843,2.09220995,4012.4,4011.6,0.7883]
[1734404653049,2.09220995,4012.8,4011.9,0.7883]
[1734404653246,2.09220995,4012.8,4012.0,0.02311112]
[1734404653557,2.09220995,4012.8,4011.9,0.7883]
[1734404655084,2.09220995,4012.4,4011.9,0.7883]
[1734404659066,2.30143095,4012.8,4011.9,0.7883]
[1734404659382,2.09220995,4012.8,4011.9,0.7883]
[1734404659525,2.09220995,4013.2,4011.9,0.7883]
[1734404659730,2.09220995,4013.2,4012.0,0.83432191]
[1734404659973,2.09220995,4013.6,4012.1,0.8094]
[1734404660178,2.09220995,4013.6,4012.1,0.83196379]
[1734404661234,2.09220995,4013.2,4012.1,0.83196379]
[1734404661536,2.09220995,4013.2,4012.1,0.8094]
[1734404661777,2.30143095,4013.2,4012.2,0.02244856]
[1734404662066,0.01640985,4013.1,4012.2,0.02244856]
[1734404662684,2.74403095,4013.2,4012.2,0.02244856]
[1734404662854,2.74403095,4013.2,4012.1,0.8094]
[1734404663063,2.09220995,4012.8,4012.1,0.8094]
[1734404663401,2.09220995,4012.4,4012.2,0.02235349]
[1734404663691,2.09220995,4012.4,4012.1,0.8094]
[1734404664042,2.09220995,4012.4,4012.2,0.02236963]
[1734404664243,0.01640985,4012.3,4011.5,0.8094]
[1734404664672,2.09220995,4012.0,4011.5,0.8094]
[1734404666100,0.01640985,4011.9,4011.5,0.8094]
[1734404666309,0.22727183,4011.9,4011.5,0.8094]
[1734404667059,0.55,4011.8,4010.6,0.8094]
[1734404668102,0.55,4011.8,4010.6,1.10322777]
[1734404668416,0.55,4011.8,4010.7,0.02259303]
[1734404669120,0.55,4011.8,4010.7,0.3164208]
[1734404669266,0.55,4011.8,4010.8,0.1258856]
[1734404669470,0.55,4011.8,4010.9,0.02258618]
[1734404673104,0.55,4011.9,4010.9,0.02258618]
[1734404674283,0.01279471,4011.4,4010.9,0.02258618]
[1734404676283,0.01279471,4011.4,4011.0,0.8094]
[1734404676633,0.01279471,4011.4,4011.2,0.8094]
[1734404676922,0.01279471,4011.4,4011.3,0.02257246]
[1734404677130,0.01279471,4011.4,4011.2,0.8094]
[1734404677294,0.01279471,4011.4,4011.3,0.02257246]
[1734404677514,0.01279471,4011.4,4011.3,0.02492693]
[1734404677822,0.01279471,4011.4,4011.3,0.02257246]
[1734404678121,0.01279471,4011.4,4011.2,0.8094]
[1734404678331,0.01279471,4011.4,4011.3,0.02252826]
[1734404678479,0.01279471,4011.4,4011.2,0.8094]
[1734404678678,0.01279471,4011.4,4011.3,0.02252826]
[1734404678903,0.01279471,4011.4,4011.2,0.8094]
[1734404679123,0.01279471,4011.4,4011.3,0.02252826]
[1734404679427,0.01279471,4011.4,4011.2,0.8094]
[1734404679583,0.01279471,4011.4,4011.3,0.0225218]
[1734404679786,0.01279471,4011.4,4011.2,0.8094]
[1734404679985,0.01279471,4011.4,4011.3,0.0225218]
[1734404680185,0.01279471,4011.4,4011.2,0.8094]
[1734404680497,0.01279471,4011.4,4011.3,0.0225218]
[1734404680713,0.01279471,4011.4,4010.9,0.8094]
[1734404680919,0.01279471,4011.4,4011.3,0.02252181]
[1734404681111,0.01279471,4011.4,4010.9,0.8094]
[1734404681422,0.01279471,4011.4,4011.3,0.02252181]
[1734404681631,0.01279471,4011.4,4010.9,0.8094]
[1734404681928,0.01279471,4011.4,4011.0,0.02255292]
[1734404688510,0.01279471,4011.4,4011.0,0.32232573]
[1734404688917,2.09220995,4012.0,4011.0,0.32232573]
[1734404689289,1.48042629,4012.6,4011.2,0.751]
[1734404689497,2.09220995,4012.8,4011.4,0.751]
[1734404689697,2.09220995,4012.8,4011.6,0.751]
[1734404689911,2.08722391,4012.8,4011.7,0.02250558]
[1734404690818,2.08722391,4012.8,4011.8,0.751]
[1734404691131,3.57263624,4013.2,4011.9,0.77340501]
[1734404691349,2.53480995,4013.2,4011.9,0.77340501]
[1734404693039,2.53480995,4013.2,4012.1,0.751]
[1734404693242,0.01640985,4013.1,4012.1,0.751]
[1734404694043,2.53480995,4013.2,4012.1,0.751]
[1734404696022,0.01640985,4013.1,4012.1,0.751]
[1734404696916,0.55,4013.1,4012.1,0.751]
[1734404697116,0.41226362,4013.0,4012.1,0.751]
[1734404697818,0.55,4013.1,4012.1,0.751]
[1734404699977,2.53480995,4013.2,4011.8,0.8148]
[1734404699978,2.09220995,4013.2,4011.8,0.8148]
[1734404700315,2.09220995,4013.2,4012.0,0.8148]
[1734404700765,2.09220995,4013.2,4011.9,0.02492172]
[1734404700766,2.09220995,4013.2,4012.1,0.8148]
[1734404701254,2.09220995,4013.2,4012.3,0.8148]
[1734404701456,2.09220995,4013.2,4012.3,0.83972071]
[1734404701758,2.09220995,4013.2,4012.3,0.8148]
[1734404701956,0.4426,4013.5,4012.3,0.8148]
[1734404704817,0.45900985,4013.5,4012.3,0.8148]
[1734404705765,0.4426,4013.5,4012.3,0.8148]
[1734404706272,2.09220995,4013.6,4012.3,0.8148]
[1734404707737,2.09220995,4014.0,4012.5,0.8148]
[1734404707941,0.4426,4014.2,4012.7,0.8148]
[1734404708161,0.4426,4014.2,4012.9,0.8148]
[1734404711405,2.09220995,4014.4,4013.0,0.02491474]
[1734404711577,2.09220995,4014.4,4013.1,0.8148]
[1734404711871,2.09220995,4014.4,4013.3,0.8148]
[1734404712070,0.9926,4014.3,4013.3,0.8148]
[1734404712396,1.550181,4014.3,4013.3,0.8148]
[1734404712574,0.9926,4014.3,4013.3,0.8148]
[1734404714009,4.58348995,4014.0,4013.3,0.8148]
[1734404714149,0.01640985,4013.9,4013.3,0.8148]
[1734404714862,0.9926,4014.3,4011.8,0.7555]
[1734404714863,4.58374995,4013.6,4011.8,0.7555]
[1734404715069,0.01640985,4013.5,4012.0,0.7555]
[1734404715277,2.09220995,4013.2,4012.0,0.7555]
[1734404716299,0.01640985,4013.1,4012.0,3.7555]
[1734404716501,0.01640985,4013.1,4012.1,0.43912934]
[1734404716855,0.9926,4013.1,4012.0,0.7555]
[1734404717056,0.9926,4013.1,4012.0,3.7555]
[1734404717265,0.9926,4013.1,4012.0,1.05527281]
[1734404717653,0.55,4013.1,4012.1,0.7555]
[1734404717888,0.55,4013.1,4012.2,0.42640443]
[1734404718396,0.55,4013.1,4012.1,0.7555]
[1734404719108,0.55,4013.1,4012.1,0.74270529]
[1734404719260,3.04184,4013.1,4012.1,0.74270529]
[1734404719457,2.49195,4013.0,4012.1,0.74270529]
[1734404719693,0.01640985,4012.9,4012.1,0.74270529]
[1734404720006,0.01640985,4012.9,4011.5,0.3240365]
[1734404720007,4.58451995,4012.4,4011.5,0.3240365]
[1734404720156,2.49233,4012.3,4010.8,0.3240365]
[1734404720355,0.4554,4012.2,4010.8,0.66779816]
[1734404720596,0.55,4012.3,4010.9,0.66779816]
[1734404722400,0.55,4012.3,4011.0,0.8048]
[1734404722557,2.09220995,4012.4,4011.2,0.8048]
[1734404722786,2.09220995,4012.4,4011.3,0.66779816]
[1734404723015,2.09220995,4012.4,4011.4,0.8048]
[1734404723214,2.09220995,4012.4,4011.4,1.15218808]
[1734404723618,0.01640985,4012.3,4011.4,1.15218808]
[1734404723828,0.01640985,4012.3,4011.4,0.8048]
[1734404724026,0.01640985,4012.3,4011.5,0.02198395]
[1734404725215,2.50875985,4012.3,4011.5,0.02198395]
[1734404725414,2.50875985,4012.3,4011.4,0.8048]
[1734404725930,3.06495793,4012.3,4011.5,0.0220308]
[1734404726478,0.57260793,4012.3,4011.5,0.0220308]
[1734404726593,2.50879985,4012.3,4011.5,0.0220308]
[1734404726994,2.50879985,4012.3,4011.4,0.8048]
[1734404727189,0.4554,4012.8,4011.7,0.8048]
[1734404727432,0.47180985,4012.8,4011.7,0.8048]
[1734404727730,0.55640198,4012.7,4011.7,0.8048]
[1734404728287,0.4554,4012.8,4011.7,0.8048]
[1734404728592,0.4554,4012.8,4011.8,0.02202052]
[1734404728828,0.4554,4012.8,4011.7,0.8048]
[1734404729031,0.4554,4012.8,4011.9,0.02201709]
[1734404729238,2.09220995,4013.0,4011.7,0.8048]
[1734404729416,0.55,4012.9,4012.0,0.02201367]
[1734404729602,2.09220995,4013.0,4011.7,0.8048]
[1734404729844,2.09220995,4013.0,4012.2,0.7732]
[1734404730508,0.4554,4013.1,4012.3,0.02200339]
[1734404730844,2.09220995,4013.4,4012.4,0.7732]
[1734404731053,2.09220995,4013.4,4012.4,0.79519996]
[1734404731254,2.09220995,4013.4,4012.5,0.14629981]
[1734404731757,0.4554,4013.7,4012.6,0.02199311]
[1734404731901,2.09220995,4013.8,4012.7,0.7732]
[1734404732337,0.4554,4014.0,4012.7,0.7732]
[1734404732560,0.254761,4013.9,4012.7,0.7732]
[1734404732705,0.254761,4013.9,4012.8,0.08755418]
[1734404732905,0.254761,4013.9,4012.7,0.7732]
[1734404733148,0.254761,4013.9,4012.8,0.08755418]
[1734404733514,0.254761,4013.9,4012.7,0.7732]
[1734404733850,0.254761,4013.9,4012.8,0.08755418]
[1734404734456,2.09220995,4014.2,4012.8,0.08755418]
[1734404734457,2.09220995,4014.2,4012.9,0.7732]
[1734404734616,2.09220995,4014.2,4013.0,0.7732]
[1734404734814,2.54760995,4014.6,4013.1,0.66779816]
[1734404735120,2.54760995,4014.6,4013.2,0.7732]
[1734404735320,0.51421757,4014.5,4013.3,0.08672069]
[1734404735531,0.01640985,4014.4,4013.2,0.7732]
[1734404735734,0.01640985,4014.4,4013.3,0.08672069]
[1734404736011,2.09220995,4014.2,4013.3,0.08672069]
[1734404736215,0.01640985,4014.1,4013.3,0.08672069]
[1734404736611,2.09220995,4014.2,4013.3,0.08672069]
[1734404738066,2.09220995,4014.2,4013.2,0.7732]
[1734404738416,2.09220995,4014.2,4013.3,0.08568015]
[1734404738612,0.25641322,4014.1,4013.3,0.08568015]
[1734404739012,0.24000337,4014.1,4013.2,0.7732]
[1734404739427,0.24000337,4014.1,4013.1,0.3240365]
[1734404739428,0.24000337,4014.1,4013.4,0.8301]
[1734404739846,0.24000337,4014.1,4013.5,0.08368846]
[1734404740428,0.24000337,4014.1,4013.4,0.8301]
[1734404740652,0.23322133,4014.0,4013.6,0.0836834]
[1734404740856,0.23322133,4014.0,4013.7,0.8301]
[1734404741061,2.09220995,4014.2,4013.7,0.8301]
[1734404741393,2.09220995,4014.2,4013.8,0.08367329]
[1734404741598,2.09220995,4014.2,4013.7,0.8301]
[1734404741761,2.09220995,4014.2,4013.9,0.08366823]
[1734404741915,2.09220995,4014.2,4013.7,0.8301]
[1734404742256,0.4554,4014.6,4013.7,0.8301]
[1734404742257,2.54760995,4014.6,4013.8,0.08367329]
[1734404742459,0.254761,4014.5,4013.7,0.8301]
[1734404746675,0.4554,4014.9,4013.7,0.8301]
[1734404746852,0.55,4015.1,4013.9,0.7703]
[1734404747051,0.4554,4015.5,4014.1,0.7703]
[1734404747586,2.09220995,4015.2,4014.1,0.7703]
[1734404747783,0.01640985,4015.1,4014.1,0.7703]
[1734404748157,2.34861193,4015.2,4014.1,0.7703]
[1734404748549,2.09220995,4015.4,4014.1,0.7703]
[1734404748883,2.09220995,4015.4,4014.2,0.7703]
[1734404749253,2.09220995,4015.4,4014.3,0.8537662]
[1734404749454,2.09220995,4015.4,4014.3,0.7703]
[1734404751614,0.01640985,4015.3,4014.3,0.7703]
[1734404751782,0.45990198,4015.2,4014.3,0.7703]
[1734404751979,0.01640985,4015.1,4014.3,0.7703]
[1734404752184,0.01640985,4015.1,4014.4,0.08286332]
[1734404752954,2.54760995,4015.0,4014.4,0.08286332]
[1734404753190,2.54760995,4015.0,4014.3,0.7703]
[1734404753394,3.05307193,4015.0,4014.3,0.7703]
[1734404753966,0.55,4015.3,4014.3,0.7703]
[1734404754180,2.54760995,4015.4,4014.4,0.66779816]
[1734404754382,2.54760995,4015.4,4014.4,0.40650283]
[1734404754586,2.09220995,4015.4,4014.4,0.40650283]
[1734404754790,2.09220995,4015.4,4014.5,0.7703]
[1734404755018,2.09220995,4015.4,4014.5,0.85274461]
[1734404756596,0.01640985,4015.3,4014.5,0.85274461]
[1734404756830,0.21086198,4015.2,4014.5,0.85274461]
[1734404757186,0.01640985,4015.1,4014.5,0.7703]
[1734404757427,0.01640985,4015.1,4014.6,0.08243955]
[1734404757628,0.01640985,4015.1,4014.5,0.7703]
[1734404757943,0.01640985,4015.1,4014.7,0.0824345]
[1734404758081,2.09220995,4015.0,4014.6,0.08243955]
[1734404758290,0.01640985,4014.9,4013.7,0.7703]
[1734404758618,0.01640985,4014.9,4013.7,1.0943365]
[1734404758921,0.01640985,4014.9,4013.9,0.7703]
[1734404759126,2.09220995,4015.0,4013.9,0.7703]
[1734404759282,2.61876313,4015.0,4014.0,0.08254258]
[1734404759727,2.63517298,4015.0,4013.9,0.7703]
[1734404760231,0.55,4014.9,4014.0,0.08254258]
[1734404760989,2.61876313,4015.0,4014.0,0.40657908]
[1734404761189,2.61876313,4015.0,4014.0,0.3240365]
[1734404761519,0.4554,4016.6,4014.2,0.7942]
[1734404761734,2.09220995,4016.5,4014.4,0.7942]
[1734404761931,0.4554,4016.6,4014.6,0.7942]
[1734404762082,0.4554,4016.6,4014.8,0.7942]
[1734404762284,2.09220995,4016.9,4015.0,0.7942]
[1734404762524,4.58168995,4016.9,4015.2,0.7942]
[1734404762725,2.4896,4016.8,4015.2,0.7942]
[1734404762928,2.4896,4016.8,4015.4,0.7942]
[1734404762929,0.50536198,4016.7,4015.4,0.7942]
[1734404763309,0.55,4016.6,4015.5,0.08239184]
[1734404763632,0.55,4016.6,4015.4,0.7942]
[1734404764133,0.01640985,4016.5,4015.4,0.7942]
[1734404764308,2.1086198,4016.5,4015.4,0.7942]
[1734404764643,2.48992,4016.2,4015.4,0.7942]
[1734404764848,0.01640985,4016.1,4015.4,0.7942]
[1734404765135,0.01640985,4016.1,4015.5,0.08239184]
[1734404765432,2.48992,4016.2,4015.5,0.08239184]
[1734404766000,2.48992,4016.2,4015.4,0.7942]
[1734404766200,2.09220995,4015.9,4015.6,0.08238679]
[1734404766408,0.01640985,4015.8,4015.0,0.7942]
[1734404766609,2.09220995,4015.9,4015.0,0.7942]
[1734404766898,2.09220995,4016.3,4015.0,0.7942]
[1734404767331,2.48998,4016.1,4015.0,0.7942]
[1734404767638,2.48987,4016.3,4015.0,0.7942]
[1734404767828,4.58207995,4016.3,4015.0,0.7942]
[1734404768430,0.01640985,4016.2,4015.0,0.7942]
[1734404768815,0.01640985,4016.2,4015.1,0.07878732]
[1734404769011,0.47625883,4016.2,4015.0,0.7942]
[1734404769932,0.47625883,4016.2,4015.1,0.07878732]
[1734404770241,2.49005,4016.0,4015.0,0.7942]
[1734404770535,2.09220995,4016.3,4015.0,0.7942]
[1734404771430,2.04220995,4016.3,4015.0,0.7942]
[1734404771627,0.55,4016.1,4015.1,0.07878732]
[1734404771817,0.55,4016.1,4015.0,0.7942]
[1734404772018,0.204221,4016.2,4015.2,0.07878226]
[1734404772339,0.204221,4016.2,4015.3,0.7942]
[1734404772537,0.01640985,4016.1,4015.3,0.87297721]
[1734404772728,0.01640985,4016.1,4015.3,0.7942]
[1734404772927,2.09220995,4015.9,4015.3,0.7942]
[1734404773536,4.58230995,4015.9,4015.3,0.7942]
[1734404774414,2.49019,4015.8,4015.3,0.7942]
[1734404774718,2.50659985,4015.8,4015.3,0.7942]
[1734404774913,2.49025,4015.7,4015.3,0.7942]
[1734404775114,0.01640985,4015.6,4015.3,0.7942]
[1734404776804,2.50672985,4015.6,4015.3,0.7942]
[1734404777005,4.58255995,4015.5,4015.0,0.7548]
[1734404777232,0.01640985,4015.4,4015.0,0.7548]
[1734404777636,2.09220995,4015.5,4015.0,0.7548]
[1734404778523,0.01640985,4015.4,4015.0,0.7548]
[1734404778722,2.49049,4015.3,4013.9,0.7548]
[1734404778909,2.49049,4015.3,4014.0,0.7548]
[1734404779282,2.49049,4015.3,4014.1,0.7548]
[1734404779554,2.49049,4015.3,4014.1,0.83394889]
[1734404779707,2.49049,4015.3,4014.3,0.7548]
[1734404780109,0.01640985,4015.2,4014.4,0.07913372]
[1734404780340,2.94589,4015.3,4014.4,0.07913372]
[1734404780659,2.94589,4015.3,4014.5,0.07912867]
[1734404780838,2.96229985,4015.3,4014.3,0.7548]
[1734404781048,2.96229985,4015.3,4014.6,0.07912362]
[1734404781210,0.47180985,4015.3,4014.3,0.7548]
[1734404781550,4.58283995,4015.1,4014.3,0.7548]
[1734404781965,2.09220995,4015.1,4014.3,0.7548]
[1734404782170,1.55673943,4015.9,4013.7,3.0]
[1734404782171,3.52775629,4016.2,4014.4,1.08299642]
[1734404782455,2.09220995,4016.0,4014.5,0.7548]
[1734404782610,2.09220995,4016.0,4014.6,1.19607132]
[1734404782813,2.49021,4015.8,4014.7,0.7548]
[1734404783029,0.01640985,4015.8,4014.7,0.83395673]
[1734404783377,2.09220995,4015.6,4014.7,0.83395673]
[1734404783673,0.01640985,4015.5,4014.7,0.7548]
[1734404784027,2.09220995,4015.6,4014.7,0.7548]
[1734404784245,2.09220995,4015.6,4014.8,0.07912499]
[1734404784439,2.09220995,4015.6,4014.7,0.7548]
[1734404786153,2.09220995,4016.0,4014.7,0.77970668]
[1734404786467,0.01640985,4015.9,4014.8,0.07914407]
[1734404786806,2.50650985,4015.9,4014.7,0.7548]
[1734404787082,3.13003624,4016.0,4014.9,0.07945006]
[1734404787385,2.09220995,4016.0,4015.0,0.7548]
[1734404788392,1.03782629,4016.5,4015.2,0.7548]
[1734404788393,2.09220995,4016.4,4015.2,0.7548]
[1734404788890,2.09220995,4016.4,4015.3,0.83414614]
[1734404789387,2.09220995,4016.4,4015.3,0.7548]
[1734404791811,2.1086198,4016.4,4015.3,0.7548]
[1734404791958,2.8570325,4016.4,4015.3,0.7548]
[1734404792164,3.89485879,4016.4,4015.3,0.7548]
[1734404792351,3.91126864,4016.4,4015.3,0.7548]
[1734404792550,1.03782629,4016.5,4015.5,0.7548]
[1734404792862,1.03782629,4016.6,4015.5,0.7548]
[1734404793068,2.09220995,4016.3,4015.6,0.07925924]
[1734404793270,0.01640985,4016.2,4015.6,0.07925924]
[1734404793488,0.01640985,4016.2,4015.5,0.7548]
[1734404793868,0.01640985,4016.2,4015.6,0.07925924]
[1734404794095,0.01640985,4016.2,4015.5,0.7548]
[1734404794272,2.09220995,4016.3,4015.5,0.7548]
[1734404795382,0.01640985,4016.2,4015.5,0.7548]
[1734404795761,2.54760995,4016.3,4015.5,0.7548]
[1734404796102,0.60752662,4016.2,4015.5,0.7548]
[1734404796251,2.54760995,4016.3,4015.5,0.7548]
[1734404798505,3.03993,4016.2,4015.5,0.7548]
[1734404799112,0.55,4016.2,4015.5,0.7548]
[1734404800421,2.09220995,4016.3,4015.5,0.7548]
[1734404800982,2.09220995,4016.3,4015.6,0.07882382]
[1734404801308,4.04628943,4016.8,4015.7,0.7548]
[1734404801309,1.03782629,4016.7,4015.7,0.7548]
[1734404802481,0.01640985,4016.6,4015.7,0.7548]
[1734404802681,2.09220995,4016.4,4015.7,0.7548]
[1734404802881,0.01640985,4016.3,4015.7,0.7548]
[1734404803181,2.09220995,4016.4,4015.7,0.7548]
[1734404804442,0.01640985,4016.3,4015.7,0.7548]
[1734404804724,2.09220995,4016.0,4015.7,0.7548]
[1734404808836,3.13003624,4016.4,4015.7,0.7548]
[1734404809364,1.03782629,4016.3,4015.7,0.7548]
[1734404809637,3.13003624,4016.4,4015.7,0.7548]
[1734404809789,3.12630104,4016.4,4015.7,0.7548]
[1734404810125,0.55,4016.2,4015.7,0.7548]
[1734404810439,1.58782629,4016.2,4015.7,0.7548]
[1734404811702,2.09220995,4016.0,4015.7,0.7548]
[1734404819957,0.96363551,4015.8,4015.7,0.7548]
[1734404822690,0.96363551,4015.8,4014.9,0.788]
[1734404822855,0.96363551,4015.2,4014.9,1.12491041]
[1734404823057,0.96363551,4015.2,4014.9,0.788]
[1734404824192,0.01640985,4015.1,4014.9,0.788]
[1734404824393,0.96363551,4015.2,4014.9,0.788]
[1734404825968,1.03782629,4015.6,4014.9,0.788]
[1734404826276,0.55,4015.6,4014.9,1.0912865]
[1734404826593,2.54365027,4015.8,4015.0,1.0912865]
[1734404826594,1.03782629,4015.8,4015.0,1.0912865]
[1734404826743,2.07565258,4016.1,4015.0,1.0912865]
[1734404826744,1.03782629,4016.1,4015.1,0.92930482]
[1734404826946,1.03782629,4016.1,4015.1,1.23259132]
[1734404827195,1.03782629,4016.1,4015.2,0.788]
[1734404827751,3.12607656,4016.2,4015.2,0.9434353]
[1734404829969,3.12607656,4016.2,4015.3,0.85353791]
[1734404830156,3.12607656,4016.2,4015.2,0.9434353]
[1734404830485,3.12607656,4016.2,4015.3,0.85353675]
[1734404831860,3.12607656,4016.2,4015.2,0.9434353]
[1734404832310,1.03782629,4016.1,4015.2,0.9434353]
[1734404833205,2.08825027,4015.8,4015.2,0.788]
[1734404835110,3.12607656,4015.8,4015.2,0.788]
[1734404836493,2.08825027,4015.8,4015.2,0.788]
[1734404836686,1.03782629,4016.1,4015.2,0.788]
[1734404836881,1.03782629,4016.0,4015.3,0.07774339]
[1734404837125,1.03782629,4015.9,4015.3,0.07774339]
[1734404837424,1.03782629,4016.0,4015.3,0.07774339]
[1734404838503,1.03782629,4015.9,4015.3,0.07774339]
[1734404838914,1.03782629,4016.0,4015.3,0.07774339]
[1734404839089,1.03782629,4015.9,4015.2,0.788]
[1734404839288,2.08825027,4015.8,4015.4,0.07773834]
[1734404839613,3.12607656,4015.8,4015.2,0.788]
[1734404839986,3.12607656,4015.8,4015.3,0.07775556]
[1734404840399,3.12607656,4015.8,4015.2,0.788]
[1734404840889,1.03782629,4015.7,4015.3,0.07775556]
[1734404841087,1.03782629,4015.7,4015.2,0.788]
[1734404841428,1.03782629,4015.7,4015.3,0.07775558]
[1734404841811,2.08825027,4015.8,4015.2,0.788]
[1734404842013,3.12607656,4015.8,4015.2,0.788]
[1734404842217,3.12607656,4015.8,4015.3,0.07776166]
[1734404842617,3.12607656,4015.8,4015.2,0.788]
[1734404843002,3.12607656,4015.8,4015.3,0.07776166]
[1734404843219,2.08825027,4015.8,4015.3,0.07776166]
[1734404843406,2.08825027,4015.8,4015.2,0.788]
[1734404843737,3.12607656,4015.8,4015.3,0.07776166]
[1734404844046,3.12607656,4015.8,4015.2,0.788]
[1734404844047,1.03782629,4016.0,4015.2,0.788]
[1734404844192,1.03782629,4017.0,4015.8,1.03244162]
[1734404844394,1.03782629,4017.3,4016.1,0.8113]
[1734404844650,1.03782629,4017.5,4016.3,3.0]
[1734404844937,2.54365027,4018.3,4016.3,3.0]
[1734404844938,1.03782629,4018.2,4017.0,0.8113]
[1734404845136,3.7246553,4018.4,4017.5,0.8113]
[1734404845137,2.16791587,4018.4,4017.5,0.8113]
[1734404845338,2.16791587,4018.4,4017.7,0.8113]
[1734404845926,0.1640211,4019.3,4017.9,0.8113]
[1734404846339,2.48808,4019.2,4017.9,0.8113]
[1734404846489,2.48812,4019.1,4018.0,0.07774855]
[1734404846696,2.48812,4019.1,4017.9,0.8113]
[1734404847032,0.1640211,4019.3,4017.9,0.8113]
[1734404847245,2.91723821,4019.3,4017.9,0.8113]
[1734404847440,2.48806,4019.2,4017.9,0.8113]
[1734404847623,0.1640211,4019.3,4017.9,0.8113]
[1734404850302,2.48811,4019.2,4017.9,0.8113]
[1734404851132,0.1640211,4019.3,4017.9,0.8113]
[1734404851293,2.48825,4018.9,4017.9,0.8113]
[1734404851796,2.48825,4018.9,4018.0,0.07468686]
[1734404852143,0.55,4019.2,4018.0,0.07468686]
[1734404852340,2.48836,4018.7,4017.9,0.8113]
[1734404852496,0.55,4019.2,4017.9,0.8113]
[1734404852705,0.4554,4018.9,4017.9,0.8113]
[1734404852914,2.4883,4018.8,4017.9,0.8113]
[1734404853645,0.55,4018.8,4017.9,0.8113]